bitfinex/quotes_ETHUSD_20250626
["timestamp","ask_amount","ask_price","bid_price","bid_amount"]
[1750896233356,12.70503287,2418.9,2418.6,0.2064]
[1750896234361,15.59891601,2418.9,2418.6,0.2064]
[1750896234654,11.715,2418.9,2418.6,0.2064]
[1750896234856,12.70332016,2418.9,2418.6,0.2064]
[1750896235259,15.59722243,2418.9,2418.6,0.2064]
[1750896235464,14.60890227,2418.9,2418.6,0.2064]
[1750896236467,2.89411667,2418.7,2418.6,0.2064]
[1750896236644,2.89460878,2418.3,2418.1,0.7561]
[1750896236845,14.60950718,2418.4,2418.1,0.2064]
[1750896237045,2.98184557,2418.3,2418.1,0.2064]
[1750896237262,11.715,2418.4,2418.1,0.2064]
[1750896237568,1.715,2418.3,2418.1,0.2064]
[1750896239138,1.715,2418.3,2418.1,3.1011854]
[1750896239380,1.715,2418.3,2418.1,0.2064]
[1750896239561,10.0,2418.4,2418.1,0.2064]
[1750896239860,1.715,2418.3,2418.1,0.2064]
[1750896240060,1.715,2418.3,2418.1,3.10121838]
[1750896240449,1.715,2418.3,2418.1,0.2064]
[1750896242377,11.715,2418.4,2418.1,3.10121433]
[1750896242967,11.715,2418.4,2418.1,0.2064]
[1750896243168,11.715,2418.4,2418.1,3.10123088]
[1750896243364,11.715,2418.4,2418.1,0.2064]
[1750896243676,0.0872,2418.3,2417.7,3.64814479]
[1750896243879,0.0872,2418.3,2417.9,3.1014728]
[1750896244674,10.2064,2418.4,2417.9,0.2064]
[1750896244860,1.715,2418.3,2418.2,2.89471507]
[1750896245054,8.402,2418.3,2418.1,3.10117895]
[1750896246379,10.0,2418.4,2418.1,3.10117895]
[1750896246572,1.715,2418.3,2418.1,3.10117895]
[1750896247957,1.715,2418.3,2418.1,3.1011744]
[1750896248279,10.0,2418.4,2418.2,2.89469808]
[1750896248466,1.715,2418.3,2418.2,2.89469808]
[1750896249187,10.0,2418.6,2418.5,2.89427344]
[1750896249779,10.0,2418.6,2418.5,3.10067344]
[1750896251595,10.0,2418.6,2418.5,0.2064]
[1750896259163,10.98963774,2418.6,2418.5,0.2064]
[1750896260984,10.0,2418.6,2418.5,3.100756]
[1750896261180,10.0,2418.6,2418.5,3.78335899]
[1750896263167,10.98985623,2418.6,2418.5,3.78335899]
[1750896263878,10.98985623,2418.6,2418.5,0.88900299]
[1750896264073,10.98985623,2418.6,2418.5,0.2064]
[1750896264280,0.98985623,2418.6,2418.5,0.2064]
[1750896264596,10.0,2418.8,2418.5,3.10075586]
[1750896264769,0.9899298,2418.7,2418.5,3.10075586]
[1750896265097,11.715,2418.8,2418.5,3.10075586]
[1750896265299,11.715,2418.8,2418.3,3.72527387]
[1750896265300,0.98996516,2418.7,2418.3,0.8307]
[1750896265602,11.715,2418.8,2418.6,0.2064]
[1750896265786,3.97127799,2418.7,2418.6,0.2064]
[1750896265961,10.65827799,2418.7,2418.5,0.2064]
[1750896266161,0.98996132,2418.6,2418.5,0.2064]
[1750896269701,11.715,2418.7,2418.5,3.100756]
[1750896270367,11.715,2418.7,2418.6,2.89423633]
[1750896270592,10.99023736,2418.7,2418.6,3.10063633]
[1750896270783,10.99023736,2418.7,2418.6,0.2064]
[1750896274011,10.99023736,2418.7,2418.3,0.775]
[1750896274012,13.88435403,2418.7,2418.3,0.775]
[1750896274196,0.99023736,2418.6,2418.5,0.2064]
[1750896274796,3.88447369,2418.6,2418.5,0.2064]
[1750896275000,0.99023736,2418.6,2418.2,2.8946886]
[1750896275220,10.0,2418.7,2418.2,2.8946886]
[1750896275221,0.99023736,2418.5,2418.4,0.2064]
[1750896287119,3.88460699,2418.5,2418.2,0.2064]
[1750896287301,0.99023736,2418.4,2418.2,0.2064]
[1750896287635,0.99023736,2418.3,2418.2,0.2064]
[1750896287838,0.99023736,2418.3,2418.2,3.10111507]
[1750896288048,0.0872,2418.5,2418.2,3.10111507]
[1750896288212,0.99113111,2418.4,2418.2,3.10111507]
[1750896288416,1.715,2418.6,2418.4,2.89445146]
[1750896288617,0.99107343,2418.5,2418.4,2.89445146]
[1750896289051,0.99107343,2418.5,2418.4,0.2064]
[1750896291923,3.97270409,2418.5,2417.9,2.89500984]
[1750896292126,0.99107343,2418.4,2418.2,0.2064]
[1750896292454,0.0872,2418.5,2418.2,0.2064]
[1750896292654,0.99105104,2418.4,2418.2,0.2064]
[1750896292865,0.0872,2418.5,2418.2,0.2064]
[1750896293151,0.99103556,2418.4,2418.2,0.2064]
[1750896293329,0.0872,2418.5,2418.2,0.2064]
[1750896293534,1.715,2418.6,2418.3,3.70489537]
[1750896293733,0.99094672,2418.5,2418.3,3.91122469]
[1750896294054,1.715,2418.6,2418.3,3.91122469]
[1750896294257,0.99094683,2418.5,2418.3,3.91122469]
[1750896294456,1.715,2418.6,2418.3,3.91122469]
[1750896294760,0.99094751,2418.5,2418.3,3.91122469]
[1750896294968,1.715,2418.6,2418.4,2.89445515]
[1750896295253,0.9909401,2418.5,2418.4,2.89445515]
[1750896296272,1.715,2418.6,2418.4,2.89445515]
[1750896296473,1.715,2418.6,2418.5,0.2064]
[1750896296674,2.70592439,2418.6,2418.5,0.2064]
[1750896297065,0.99092439,2418.6,2418.5,3.84938897]
[1750896297256,1.715,2418.9,2418.6,3.6447548]
[1750896297575,0.99085025,2418.8,2418.6,0.7506]
[1750896297777,0.99085025,2418.7,2418.6,0.957]
[1750896298974,0.99085025,2418.7,2418.6,3.85123633]
[1750896299643,0.99085025,2418.7,2418.6,0.957]
[1750896301378,0.99085025,2418.7,2418.6,0.2064]
[1750896302776,3.88496692,2418.7,2418.6,0.2064]
[1750896302976,1.63802446,2418.7,2418.0,0.769]
[1750896303180,4.09158555,2418.6,2418.2,0.2064]
[1750896303370,0.99085025,2418.5,2418.2,0.2064]
[1750896303569,0.99085025,2418.5,2417.6,10.0]
[1750896303570,1.715,2418.7,2418.3,3.68293785]
[1750896303875,0.99070985,2418.6,2418.5,0.2064]
[1750896305885,0.99070985,2418.6,2418.3,0.7884]
[1750896306072,0.99070985,2418.5,2418.4,0.2064]
[1750896314500,3.88506585,2418.5,2418.4,0.2064]
[1750896315062,0.99070985,2418.5,2418.4,0.2064]
[1750896318118,0.99070985,2418.5,2418.1,0.7967]
[1750896318404,0.99070985,2418.4,2418.1,0.7967]
[1750896318605,2.89442164,2418.5,2418.1,1.16585712]
[1750896318908,0.9908499,2418.4,2418.1,1.16585712]
[1750896319207,2.894356,2418.5,2417.9,2.89501413]
[1750896319410,0.99077798,2418.4,2417.9,2.89501413]
[1750896319579,2.89449074,2418.4,2417.9,2.89501413]
[1750896320307,2.89449074,2418.4,2417.9,4.22164419]
[1750896321709,2.89449074,2418.4,2417.9,2.89501413]
[1750896321911,2.89438779,2418.5,2418.0,2.89494804]
[1750896322213,0.99063963,2418.4,2418.0,2.89494804]
[1750896322378,2.89438779,2418.5,2418.0,2.89494804]
[1750896322579,0.99062168,2418.4,2418.0,2.8948429]
[1750896322780,14.69649596,2418.6,2417.8,0.7691]
[1750896322993,0.99060667,2418.5,2418.1,2.89474131]
[1750896323308,0.99060667,2418.4,2418.1,2.89474131]
[1750896323481,14.69649596,2418.6,2418.1,2.89474131]
[1750896323680,0.9906006,2418.5,2418.1,2.89474131]
[1750896323883,0.9906006,2418.4,2418.1,2.89474131]
[1750896324081,14.69649596,2418.6,2418.1,2.89474131]
[1750896324316,0.99057144,2418.5,2418.1,3.67603478]
[1750896324514,14.69644494,2418.6,2418.1,4.40768445]
[1750896324713,0.99055076,2418.5,2418.1,4.40768445]
[1750896324908,11.8022,2418.6,2418.2,2.894714]
[1750896325114,0.99055238,2418.5,2418.2,2.894714]
[1750896325281,11.715,2418.6,2418.2,2.894714]
[1750896325585,2.70454374,2418.5,2418.2,2.894714]
[1750896325914,1.714,2418.5,2418.2,2.894714]
[1750896326822,11.714,2418.6,2418.4,2.89437664]
[1750896327019,0.99053112,2418.5,2418.4,3.69927664]
[1750896327914,0.99053112,2418.5,2418.4,0.8049]
[1750896328119,0.99053112,2418.5,2418.4,1.0113]
[1750896329118,0.99053112,2418.5,2418.4,3.90577568]
[1750896330717,1.714,2418.7,2418.4,3.90577568]
[1750896330896,0.99074318,2418.6,2418.4,3.90577568]
[1750896331098,1.714,2418.7,2418.4,3.90577568]
[1750896331296,0.99085969,2418.6,2418.4,3.90577568]
[1750896331517,1.714,2418.7,2418.4,3.90577568]
[1750896331830,0.99085728,2418.6,2418.4,3.90577568]
[1750896332020,0.1653892,2419.0,2418.4,1.55796839]
[1750896332216,1.714,2418.8,2418.7,2.8940116]
[1750896332517,2.70481269,2418.8,2418.7,2.8940116]
[1750896333415,0.99081269,2418.9,2418.8,2.89399702]
[1750896333722,0.99081269,2418.9,2418.7,3.7102116]
[1750896333723,0.0781892,2419.0,2418.7,3.91664154]
[1750896334014,0.0781892,2419.0,2418.9,0.2064]
[1750896334198,1.06872401,2419.0,2418.9,0.2064]
[1750896335307,3.96248176,2419.0,2418.9,0.2064]
[1750896335916,1.06872401,2419.0,2418.9,0.2064]
[1750896336393,0.0781892,2419.0,2418.9,0.2064]
[1750896336593,1.06872401,2419.0,2418.9,0.2064]
[1750896336798,0.0781892,2419.0,2418.9,0.2064]
[1750896337018,1.06872401,2419.0,2418.9,3.10027738]
[1750896337321,0.0781892,2419.0,2418.9,3.10027738]
[1750896340922,0.0781892,2419.0,2418.9,0.2064]
[1750896342791,0.0781892,2419.0,2418.9,3.10027738]
[1750896344621,0.0781892,2419.0,2418.9,3.78164413]
[1750896345387,0.0781892,2419.0,2418.9,4.53864413]
[1750896346114,0.0781892,2419.0,2418.9,11.22264413]
[1750896346525,0.0781892,2419.0,2418.9,11.56775248]
[1750896349130,0.0781892,2419.0,2418.9,11.56675248]
[1750896349632,0.0153892,2419.6,2419.1,2.89357675]
[1750896349836,0.0153892,2419.6,2419.1,4.33960967]
[1750896350032,0.0153892,2419.6,2419.3,0.2064]
[1750896350033,2.89315974,2419.5,2419.3,0.2064]
[1750896351228,2.89327932,2419.4,2418.9,1.10210835]
[1750896351431,2.89327932,2419.4,2419.1,0.2064]
[1750896351432,2.89339891,2419.3,2419.1,0.2064]
[1750896351733,0.2217892,2419.6,2419.1,0.2064]
[1750896351937,2.89329545,2419.4,2419.1,0.2064]
[1750896352624,2.89318692,2419.5,2419.1,0.2064]
[1750896353424,3.11488344,2419.6,2419.1,3.10003473]
[1750896353830,3.11488344,2419.6,2419.1,0.2064]
[1750896354028,2.89316517,2419.5,2419.1,0.2064]
[1750896357742,4.10166391,2419.6,2419.1,0.2064]
[1750896358150,2.89319598,2419.5,2419.1,0.2064]
[1750896358455,3.87996647,2419.5,2419.1,0.2064]
[1750896360143,0.98677049,2419.5,2419.1,0.2064]
[1750896360349,0.98677049,2419.4,2418.9,1.10210835]
[1750896360638,2.89352495,2419.2,2419.0,0.2064]
[1750896360841,5.59322424,2419.3,2419.0,0.2064]
[1750896362351,0.98677049,2419.2,2419.0,0.2064]
[1750896362515,1.713,2419.3,2419.0,0.2064]
[1750896362516,2.69977049,2419.3,2419.0,0.2064]
[1750896365245,1.713,2419.3,2419.0,0.2064]
[1750896365740,2.70209195,2419.3,2419.0,0.2064]
[1750896366121,1.713,2419.3,2419.0,0.2064]
[1750896366728,1.713,2419.3,2419.0,3.10014486]
[1750896367220,1.713,2419.4,2419.2,3.64765764]
[1750896367423,1.713,2419.4,2419.2,3.85405764]
[1750896368358,0.98921963,2419.3,2419.2,3.85405764]
[1750896369450,0.2064,2419.7,2419.3,2.89328853]
[1750896369659,10.0,2419.5,2419.4,2.89321623]
[1750896369961,0.98929968,2419.5,2419.4,3.09961623]
[1750896370164,0.98929968,2419.5,2419.4,3.77433614]
[1750896371165,0.98929968,2419.5,2419.4,0.88111991]
[1750896371640,0.98929968,2419.5,2419.4,3.77439923]
[1750896372331,0.98929968,2419.5,2419.4,0.88111991]
[1750896372633,0.98929968,2419.5,2419.4,0.2064]
[1750896372828,0.98929968,2419.5,2419.4,3.09967932]
[1750896373559,0.98929968,2419.5,2419.4,0.2064]
[1750896374429,0.98929968,2419.5,2419.4,3.09967932]
[1750896375232,0.98929968,2419.5,2419.4,0.2064]
[1750896376262,0.98929968,2419.5,2419.4,3.48507741]
[1750896376466,0.98929968,2419.5,2419.4,4.25637741]
[1750896376663,0.98969836,2419.7,2419.5,2.89306159]
[1750896376834,0.98969836,2419.6,2419.5,2.89306159]
[1750896377231,1.713,2419.8,2419.6,2.89304017]
[1750896377444,0.98967944,2419.7,2419.6,3.60798193]
[1750896378962,10.98967944,2419.7,2419.6,0.71494176]
[1750896380945,0.98967944,2419.7,2419.6,0.71494176]
[1750896381146,0.98967944,2419.7,2419.5,0.2064]
[1750896381460,11.713,2419.8,2419.5,0.2064]
[1750896381670,0.98938623,2419.7,2419.5,3.09954439]
[1750896381971,1.713,2419.8,2419.5,3.09954439]
[1750896382170,0.9893818,2419.7,2419.5,3.09954439]
[1750896382358,1.713,2419.8,2419.6,0.71495096]
[1750896382577,0.98928663,2419.7,2419.6,0.71495096]
[1750896382947,0.98928663,2420.0,2419.8,2.89275556]
[1750896383137,0.98928663,2419.9,2419.8,2.89275556]
[1750896383342,10.98928663,2420.1,2419.9,3.72190588]
[1750896383658,0.98928663,2420.0,2419.9,3.72190588]
[1750896383848,0.98928663,2420.0,2419.9,0.8293]
[1750896384049,0.98928663,2420.0,2419.9,1.49079248]
[1750896384249,0.98928663,2420.0,2419.9,4.38347399]
[1750896386569,10.98928663,2420.1,2419.9,4.38347399]
[1750896386872,10.0,2420.1,2419.9,4.38347399]
[1750896387066,10.98928663,2420.1,2419.9,1.49079248]
[1750896387271,10.0,2420.1,2419.9,1.49079248]
[1750896387469,10.98928663,2420.1,2419.9,1.49079248]
[1750896387674,10.0,2420.1,2419.9,0.66149248]
[1750896387861,10.98928663,2420.1,2419.7,0.8167]
[1750896388042,12.89245976,2420.1,2419.7,0.8167]
[1750896388242,0.98928663,2420.0,2419.7,0.8167]
[1750896388440,0.98795051,2420.0,2419.7,0.8167]
[1750896389380,12.89245058,2420.1,2419.7,0.8167]
[1750896389549,2.89259012,2420.0,2419.7,0.8167]
[1750896389748,13.88040077,2420.1,2419.7,0.8167]
[1750896389977,0.98790242,2420.0,2419.7,0.8167]
[1750896390365,0.98790242,2420.0,2419.8,0.37097265]
[1750896390976,3.88048696,2420.0,2419.8,0.37097265]
[1750896391173,2.89268151,2419.9,2419.5,0.7704]
[1750896391471,0.98790242,2419.9,2419.5,3.66355932]
[1750896392173,3.88050114,2420.0,2419.5,3.66355932]
[1750896392855,3.88050114,2420.0,2419.7,0.2064]
[1750896394086,2.89280105,2419.8,2419.7,0.2064]
[1750896394580,2.69990242,2419.8,2419.4,0.2064]
[1750896394773,0.98790242,2419.7,2419.4,0.2064]
[1750896394973,2.89306906,2419.6,2419.4,0.2064]
[1750896395352,2.89315974,2419.5,2419.4,0.2064]
[1750896395747,3.88106216,2419.5,2419.4,0.2064]
[1750896396479,0.98790242,2419.5,2419.4,0.2064]
[1750896396973,0.0153,2419.6,2419.4,0.2064]
[1750896397346,3.88206214,2419.5,2418.9,1.10720835]
[1750896397545,3.88206214,2419.5,2419.2,0.2064]
[1750896397780,2.89330426,2419.4,2419.2,0.2064]
[1750896398781,3.88220666,2419.4,2419.2,0.2064]
[1750896399569,2.89339891,2419.3,2419.2,0.2064]
[1750896400870,3.88237319,2419.4,2419.2,0.2064]
[1750896401051,2.89333551,2419.4,2419.2,0.2064]
[1750896401376,0.98903768,2419.4,2419.2,0.2064]
[1750896401769,3.88229128,2419.5,2419.2,0.2064]
[1750896401981,0.98903768,2419.4,2419.2,0.2064]
[1750896402349,0.98903768,2419.5,2419.2,0.2064]
[1750896404412,0.98903768,2419.5,2419.2,3.09991446]
[1750896404594,0.98903768,2419.5,2419.2,3.87971446]
[1750896405088,2.70103768,2419.5,2419.2,4.35064708]
[1750896405282,1.712,2419.5,2419.4,0.2064]
[1750896405482,2.70103768,2419.5,2419.4,0.2064]
[1750896405782,2.89334228,2419.4,2418.9,4.06231768]
[1750896406081,3.8823787,2419.4,2419.1,0.2064]
[1750896406905,5.5943787,2419.4,2419.1,0.2064]
[1750896407060,2.70103768,2419.4,2419.1,0.2064]
[1750896407265,5.5943192,2419.4,2419.1,0.2064]
[1750896409893,2.89375775,2419.0,2418.9,0.34510835]
[1750896410198,14.08919543,2419.0,2418.9,0.34510835]
[1750896410414,2.8941756,2418.7,2418.4,0.2064]
[1750896410570,2.89424431,2418.6,2418.4,0.2064]
[1750896411469,2.89424686,2418.6,2418.4,0.2064]
[1750896411869,2.894356,2418.5,2418.1,0.829]
[1750896412060,2.894356,2418.5,2418.2,0.2064]
[1750896412596,2.89447872,2418.4,2417.9,0.829]
[1750896412801,2.89447872,2418.4,2418.1,0.2064]
[1750896414195,3.10081175,2418.5,2418.1,0.2064]
[1750896414382,3.10081175,2418.5,2418.1,3.10114318]
[1750896414383,0.2064,2418.5,2418.1,3.10114318]
[1750896414989,0.2064,2418.5,2418.1,0.2064]
[1750896417093,0.2064,2418.5,2418.1,3.10122548]
[1750896419810,0.2064,2418.5,2418.1,0.2064]
[1750896420102,0.2064,2418.5,2418.1,3.66314587]
[1750896420598,0.2064,2418.5,2418.1,0.76831872]
[1750896420998,0.2064,2418.5,2418.1,3.66312169]
[1750896421499,0.2064,2418.5,2418.1,0.76831872]
[1750896422599,3.10076037,2418.5,2418.1,0.76831872]
[1750896422901,0.2064,2418.5,2418.1,0.76831872]
[1750896423119,2.89447568,2418.4,2418.1,0.2064]
[1750896423281,2.89469772,2418.3,2418.1,0.2064]
[1750896426301,2.89453486,2418.4,2418.1,0.2064]
[1750896426598,0.2217,2418.5,2418.1,0.2064]
[1750896426802,10.2217,2418.5,2418.1,0.2064]
[1750896427797,10.2064,2418.5,2418.1,0.2064]
[1750896428094,10.2064,2418.5,2418.2,0.7739]
[1750896428095,1.712,2418.5,2418.2,0.7739]
[1750896428405,1.712,2418.5,2418.3,0.2064]
[1750896428406,14.60637002,2418.5,2418.3,0.2064]
[1750896429117,2.89447568,2418.4,2418.3,0.2064]
[1750896429297,3.10087568,2418.4,2418.0,0.2064]
[1750896429494,0.2064,2418.4,2418.0,0.2064]
[1750896429710,3.10088618,2418.4,2418.0,0.2064]
[1750896430001,0.2064,2418.4,2418.0,3.10135134]
[1750896430207,0.2064,2418.4,2418.0,0.2064]
[1750896430712,3.1009805,2418.4,2418.0,0.2064]
[1750896431409,0.2064,2418.4,2418.1,2.89483094]
[1750896431793,0.2064,2418.4,2418.0,3.10130447]
[1750896433310,0.2064,2418.4,2418.1,2.89482365]
[1750896433622,11.712,2418.5,2418.2,2.89469205]
[1750896433786,11.712,2418.5,2418.2,3.10109205]
[1750896434612,10.0,2418.5,2418.3,0.8181]
[1750896435094,1.712,2418.4,2418.3,0.8181]
[1750896436593,1.712,2418.4,2418.2,0.2064]
[1750896439320,0.99096079,2418.3,2418.2,0.2064]
[1750896440318,0.99096079,2418.3,2418.2,3.10111507]
[1750896440618,0.99096079,2418.3,2418.2,0.2064]
[1750896440815,0.99096079,2418.3,2418.2,3.10111507]
[1750896441729,0.99096079,2418.3,2418.2,0.2064]
[1750896442615,0.99096079,2418.3,2418.2,3.10111507]
[1750896442825,0.99096079,2418.3,2418.2,3.78174954]
[1750896443032,1.712,2418.9,2418.3,0.788]
[1750896443186,0.99119851,2418.8,2418.3,3.68251525]
[1750896443390,0.99119851,2418.7,2418.6,0.2064]
[1750896444336,0.99119851,2418.7,2418.6,3.10063633]
[1750896444626,10.0,2418.8,2418.7,2.89411667]
[1750896444824,10.9904169,2418.8,2418.7,2.89411667]
[1750896445517,10.9904169,2418.9,2418.8,2.89388345]
[1750896445889,0.9904169,2418.9,2418.8,2.89388345]
[1750896446141,1.712,2419.3,2419.1,2.89360294]
[1750896446295,2.701916,2419.2,2419.1,2.89360294]
[1750896446495,10.0,2419.2,2419.1,3.10000294]
[1750896446694,10.989916,2419.2,2419.1,3.10000294]
[1750896447425,10.0,2419.2,2419.1,3.10000294]
[1750896447591,0.988644,2419.5,2419.1,3.10000294]
[1750896447792,2.700644,2419.4,2419.2,2.89344239]
[1750896447995,6.8874,2419.6,2419.2,2.89344239]
[1750896447996,0.988644,2419.6,2419.3,2.89339891]
[1750896448309,1.712,2419.7,2419.5,0.2064]
[1750896449118,1.712,2419.7,2419.5,3.09953881]
[1750896449443,1.195044,2419.9,2419.5,1.0123]
[1750896449729,1.712,2420.1,2419.8,3.09917305]
[1750896449893,1.712,2420.1,2419.8,0.2064]
[1750896450724,10.0,2420.0,2419.8,0.2064]
[1750896450941,10.0,2419.9,2419.3,0.7536]
[1750896451109,13.0991271,2419.9,2419.5,0.2064]
[1750896451911,2.89304017,2419.6,2419.5,0.2064]
[1750896452105,2.89321857,2419.5,2419.3,0.34505129]
[1750896452310,2.89321857,2419.5,2419.3,0.55145129]
[1750896453339,2.89327932,2419.4,2419.3,0.34505129]
[1750896453635,3.09967932,2419.4,2419.3,0.34505129]
[1750896454129,3.09973892,2419.4,2418.9,0.2064]
[1750896454449,0.2064,2419.4,2419.1,2.89359867]
[1750896454644,11.9327,2419.6,2419.2,1.27405987]
[1750896454935,11.9327,2419.6,2419.2,0.9847]
[1750896455609,11.9327,2419.6,2419.2,3.87816315]
[1750896455805,11.9327,2419.6,2419.2,3.87816093]
[1750896456734,10.0,2419.6,2419.2,0.7783]
[1750896456930,1.711,2419.5,2419.4,0.2064]
[1750896458635,1.711,2419.5,2419.4,3.48748486]
[1750896458810,1.711,2419.5,2419.4,4.30908486]
[1750896459825,4.34819574,2421.4,2419.6,0.7666]
[1750896459826,1.711,2420.0,2419.6,0.7666]
[1750896460143,1.711,2420.1,2419.7,2.8929206]
[1750896460318,1.711,2420.1,2419.8,2.89279919]
[1750896460642,1.711,2420.1,2419.9,0.2064]
[1750896463227,1.711,2420.1,2419.9,3.09906837]
[1750896464225,1.711,2420.1,2419.9,0.2064]
[1750896466660,1.711,2420.1,2419.9,3.09905783]
[1750896466984,1.711,2420.1,2419.9,3.55153469]
[1750896467529,1.711,2420.1,2420.0,2.89256198]
[1750896467730,1.711,2420.1,2420.0,3.66176198]
[1750896468858,1.711,2420.1,2419.9,0.65887686]
[1750896469028,1.711,2420.1,2419.9,0.2064]
[1750896470864,4.60344381,2420.1,2419.9,0.2064]
[1750896471046,4.60344936,2420.1,2419.9,0.2064]
[1750896471361,0.0153,2420.0,2419.4,0.8269]
[1750896471526,0.2217,2420.0,2419.6,0.2064]
[1750896471929,15.58894758,2420.1,2419.4,0.8269]
[1750896472162,14.60345816,2420.1,2419.8,0.2064]
[1750896472464,2.89258151,2420.0,2419.8,0.2064]
[1750896473162,11.711,2420.1,2419.8,0.2064]
[1750896473362,2.89257502,2420.0,2419.8,0.2064]
[1750896473664,3.8792928,2420.0,2419.8,0.2064]
[1750896474131,0.98671778,2420.0,2419.8,0.2064]
[1750896476342,0.98671778,2420.0,2419.8,0.9626]
[1750896477174,0.98671778,2420.0,2419.9,2.89268151]
[1750896477368,0.98671778,2420.1,2420.0,2.89256198]
[1750896478872,2.70171778,2420.2,2420.1,2.89244246]
[1750896479074,0.98671778,2420.4,2420.1,3.09884246]
[1750896479377,12.70171778,2420.3,2420.1,0.2064]
[1750896479541,12.70171778,2420.3,2419.9,2.89264746]
[1750896479875,12.70171778,2420.3,2420.2,0.2064]
[1750896480571,15.59392122,2420.3,2420.2,0.2064]
[1750896480758,15.59568101,2420.3,2420.0,0.2064]
[1750896481073,0.98841159,2420.2,2420.0,0.2064]
[1750896481689,12.70341159,2420.3,2420.0,3.09893745]
[1750896481992,0.98841159,2420.2,2420.1,0.59916052]
[1750896482360,7.8,2420.6,2420.2,0.8089]
[1750896482572,0.98826647,2420.5,2420.2,0.8089]
[1750896482753,0.98815491,2420.7,2420.3,2.89220344]
[1750896482948,0.98815491,2420.7,2420.5,0.2064]
[1750896483362,0.98815491,2420.8,2420.5,1.0107]
[1750896483681,0.98815491,2420.8,2420.7,0.2064]
[1750896484308,0.98815491,2420.9,2420.7,0.2064]
[1750896484459,10.98815491,2420.8,2420.7,0.2064]
[1750896485977,0.98815491,2420.8,2420.7,0.2064]
[1750896486179,0.98815491,2420.9,2420.7,0.2064]
[1750896488090,12.89160608,2420.8,2420.7,0.2064]
[1750896488267,13.87976099,2420.8,2420.7,0.2064]
[1750896490697,2.89172553,2420.7,2420.5,0.2064]
[1750896490913,2.89201876,2420.5,2419.9,2.89260001]
[1750896491206,2.89201876,2420.5,2420.2,1.0046]
[1750896491409,1.715,2420.5,2420.2,1.0046]
[1750896491710,2.89214412,2420.4,2420.2,0.2064]
[1750896492562,2.89220344,2420.3,2420.2,0.2064]
[1750896492794,2.90750344,2420.3,2420.2,0.2064]
[1750896493178,2.90750344,2420.3,2420.0,0.34495149]
[1750896493494,2.90755551,2420.3,2420.0,0.55135149]
[1750896493662,2.89234596,2420.2,2420.0,0.55135149]
[1750896493865,2.90753491,2420.3,2420.0,0.55135149]
[1750896494066,2.89232546,2420.2,2420.0,0.55135149]
[1750896495399,2.90755035,2420.3,2420.0,0.55135149]
[1750896495571,3.89570526,2420.3,2420.0,0.55135149]
[1750896495772,2.90755035,2420.3,2420.0,0.55135149]
[1750896495985,2.89232449,2420.2,2420.0,0.55135149]
[1750896496386,2.90754876,2420.3,2420.0,0.55135149]
[1750896498532,0.0153,2420.3,2420.0,0.55135149]
[1750896498680,0.98815491,2420.4,2420.0,3.4438988]
[1750896498885,1.721,2420.3,2420.2,0.2064]
[1750896500719,1.721,2420.3,2420.2,3.09872294]
[1750896500888,10.0,2420.6,2420.3,2.89213887]
[1750896501087,10.0,2420.6,2420.4,3.09845117]
[1750896501619,1.721,2420.7,2420.4,0.8853529]
[1750896501620,0.98735398,2420.7,2420.4,0.8853529]
[1750896501781,10.69115533,2421.2,2420.6,3.69063812]
[1750896501782,2.70835398,2420.9,2420.6,3.69063812]
[1750896502118,11.721,2420.9,2420.6,1.0052]
[1750896502317,12.70835398,2420.9,2420.6,1.0052]
[1750896502619,10.98735398,2420.8,2420.6,3.89700909]
[1750896502981,10.0,2420.8,2420.6,1.0052]
[1750896503381,10.98735398,2420.8,2420.6,1.0052]
[1750896503581,13.87902081,2420.8,2420.6,1.0052]
[1750896503809,0.98735398,2420.7,2420.6,0.2064]
[1750896504918,13.87901358,2420.8,2420.6,0.2064]
[1750896505095,0.98735398,2420.7,2420.6,0.2064]
[1750896505928,3.87907951,2420.7,2420.6,0.2064]
[1750896506385,0.98735398,2420.7,2420.6,0.2064]
[1750896506585,5.14991491,2420.7,2420.2,0.7692]
[1750896506786,3.87926092,2420.6,2420.4,0.2064]
[1750896507730,0.98735398,2420.5,2420.4,0.2064]
[1750896508722,0.98735398,2420.5,2420.0,0.34495149]
[1750896508918,0.98735398,2420.4,2420.0,3.44388521]
[1750896509088,0.98735398,2420.4,2420.0,3.86562373]
[1750896509485,0.98735398,2420.4,2420.0,0.76669001]
[1750896509722,0.2064,2420.6,2420.2,1.0007]
[1750896509923,2.70835398,2420.5,2420.2,0.7943]
[1750896510116,0.98735398,2420.6,2420.4,0.2064]
[1750896510422,0.98735398,2420.5,2420.4,0.2064]
[1750896510624,1.721,2420.6,2420.4,0.2064]
[1750896510925,2.70835398,2420.6,2420.4,0.2064]
[1750896511223,1.721,2420.6,2420.4,0.2064]
[1750896511424,1.721,2420.6,2420.5,2.89196447]
[1750896511425,0.98735398,2420.6,2420.5,2.89196447]
[1750896511725,0.98842563,2420.7,2420.5,1.0181]
[1750896512713,0.98842563,2420.6,2420.5,1.0181]
[1750896513340,0.98842563,2420.7,2420.5,1.0181]
[1750896513540,0.98842563,2420.6,2420.5,0.8117]
[1750896513742,0.98842563,2420.7,2420.5,1.18207808]
[1750896513939,10.0,2420.8,2420.5,1.38847808]
[1750896514147,0.9884549,2420.7,2420.5,1.38847808]
[1750896514310,10.0,2420.8,2420.5,1.18207808]
[1750896514510,10.0,2420.8,2420.7,0.2064]
[1750896514712,13.89538394,2420.8,2420.7,0.2064]
[1750896514926,13.88008394,2420.8,2420.7,0.2064]
[1750896515408,10.98847786,2420.8,2420.7,0.2064]
[1750896516011,10.98847786,2420.8,2420.7,0.9655]
[1750896516209,0.98847786,2420.8,2420.7,1.35124509]
[1750896516445,2.70947786,2421.1,2420.8,2.89154168]
[1750896516621,0.98847786,2421.0,2420.8,2.89154168]
[1750896516825,0.98847786,2421.1,2421.0,0.2064]
[1750896517139,0.98847786,2421.2,2421.0,3.0977672]
[1750896517339,0.98847786,2421.1,2421.0,0.2064]
[1750896517529,11.721,2421.3,2421.0,0.2064]
[1750896517530,0.98847786,2421.2,2421.0,0.2064]
[1750896517847,0.98847786,2421.1,2421.0,0.2064]
[1750896518146,0.98847786,2421.2,2421.0,0.2064]